[Event "Candidates Tournament"]
[Site "Khanty-Mansiysk"]
[Date "2014.03.26"]
[Round "11"]
[White "Svidler, Peter"]
[Black "Aronian, Levon"]
[Result "1/2-1/2"]
[ECO "A11"]
[WhiteElo "2758"]
[BlackElo "2830"]
[Annotator "ChessBase Website"]
[PlyCount "65"]
[EventDate "2014.03.13"]
[EventType "tourn"]
[EventRounds "14"]
[EventCountry "RUS"]
[EventCategory "21"]
[SourceTitle "CBM 160"]
[Source "ChessBase"]
[SourceDate "2014.05.15"]
[SourceVersion "1"]
[SourceVersionDate "2014.05.15"]
[SourceQuality "1"]
[TimeControl "40/7200:20/3600:900+30"]
[WhiteClock "0:59:26"]
[BlackClock "0:56:56"]

1. Nf3 {[%emt 0:00:06]} d5 {[%emt 0:00:11]} 2. g3 {[%emt 0:00:05]} Bg4 {
[%emt 0:00:14]} 3. Bg2 {[%emt 0:00:08]} e6 {[%emt 0:00:06]} 4. c4 {[%emt 0:02:
24]} c6 {[%emt 0:00:05]} 5. cxd5 {[%emt 0:03:14]} Bxf3 {[%emt 0:00:40]
Svidler's Reti set-up was anything but dangerous to Aronian. Using a well
known plan to gift the pair of bishops in return for a symmetrical position
with no weaknesses Aronian was able to hold equality with almost no problems.
Only one open file meant that all the major pieces were traded off on the c1
square and the ensuing endgame with two bishops against a knight and a bishop
gave just a symbolic advantage to the Russian player who decided not to press
the issue too much.} 6. Bxf3 {[%emt 0:00:09]} cxd5 {[%emt 0:00:03]} 7. O-O {
[%emt 0:03:04]} Nf6 {[%emt 0:00:09]} 8. Nc3 {[%emt 0:02:08]} Nc6 {[%emt 0:00:
34]} 9. d4 {[%emt 0:01:11]} Be7 {[%emt 0:00:14]} 10. e3 {[%emt 0:01:36]} O-O {
[%emt 0:00:06]} 11. Bd2 {[%emt 0:00:11]} Qd7 {[%emt 0:00:10]} 12. Rc1 $146 {
[%emt 0:02:08]} (12. Qe2 Rac8 13. Bg2 Bb4 14. Rfc1 Na5 15. a3 Bxc3 16. Rxc3
Rxc3 17. Bxc3 Nb3 18. Rd1 a5 19. f3 b5 20. Bf1 Rb8 21. Qc2 a4 22. Bb4 Ne8 23.
Rd3 g6 24. Rc3 Kg7 25. Rc6 Qd8 26. Kg2 Na5 27. Rc5 Nd6 28. Qc3 Nac4 29. Kf2 Qf6
30. Bd3 Nf5 31. Bxc4 bxc4 32. Ra5 g5 33. Kg2 Qg6 34. Rxa4 g4 35. f4 Nxe3+ 36.
Qxe3 Qc2+ 37. Kg1 Qxa4 38. Qe5+ f6 39. Qxb8 Qd1+ 40. Kg2 Qc2+ 41. Kg1 Qb1+ {
Neckar,L (2337)-Tichy,V (2260) Czechia 2010 1/2-1/2}) 12... Rfc8 {[%emt 0:00:
16]} 13. Bg2 {[%emt 0:05:05]} Ne8 {[%emt 0:03:47]} 14. Qe2 {[%emt 0:07:47]} Nd6
{[%emt 0:06:48]} 15. Rfd1 {[%emt 0:00:13]} Bd8 {[%emt 0:01:49]} 16. Be1 {
[%emt 0:06:06]} Ne7 {[%emt 0:02:59]} 17. b3 {[%emt 0:05:30]} Rc6 {[%emt 0:19:
43][%cal Ga8c8] Svidler was probably not too happy with Aronian's ultra solid
choice} 18. Na4 {[%emt 0:01:13]} Rac8 {[%emt 0:01:13]} 19. Nc5 {[%emt 0:03:51]}
Qe8 {[%emt 0:01:35]} 20. Qb2 {[%emt 0:03:06]} R6c7 {[%emt 0:18:32]} 21. a4 {
[%emt 0:05:34]} Nc6 {[%emt 0:02:53]} 22. b4 {[%emt 0:08:06]} Nb8 {[%emt 0:05:
16]} 23. b5 {[%emt 0:06:44] He pushed all his queenside pawns, but even that
expansion didn't amount to any advantage} Be7 {[%emt 0:00:25]} 24. Qb1 {
[%emt 0:03:54]} Nd7 {[%emt 0:07:51]} 25. Nd3 {[%emt 0:05:04]} Rxc1 {[%emt 0:06:
40]} 26. Rxc1 {[%emt 0:00:11]} Rxc1 {[%emt 0:00:14]} 27. Qxc1 {[%emt 0:01:09]}
Nb6 {[%emt 0:00:51]} 28. Qd1 {[%emt 0:05:20]} Qc8 {[%emt 0:03:09]} 29. Bf1 {
[%emt 0:00:25]} Bf8 {[%emt 0:05:22]} 30. Ne5 {[%emt 0:03:12]} Nbc4 {[%emt 0:02:
38]} 31. Nxc4 {[%emt 0:00:57]} Nxc4 {[%emt 0:00:07]} 32. Qc2 {[%emt 0:01:45]}
Nb6 {[%emt 0:01:48]} 33. Qxc8 1/2-1/2

[Event "Candidates Tournament"]
[Site "Khanty-Mansiysk"]
[Date "2014.03.26"]
[Round "11"]
[White "Topalov, Veselin"]
[Black "Karjakin, Sergey"]
[Result "1/2-1/2"]
[ECO "A30"]
[WhiteElo "2785"]
[BlackElo "2766"]
[Annotator "Marin,M"]
[PlyCount "114"]
[EventDate "2014.03.13"]
[EventType "tourn"]
[EventRounds "14"]
[EventCountry "RUS"]
[EventCategory "21"]
[SourceTitle "CBM 160"]
[Source "ChessBase"]
[SourceDate "2014.05.15"]
[SourceVersion "1"]
[SourceVersionDate "2014.05.15"]
[SourceQuality "1"]
[TimeControl "40/7200:20/3600:900+30"]
[WhiteClock "0:59:26"]
[BlackClock "0:56:56"]

1. Nf3 {[%emt 0:00:05]} Nf6 {[%emt 0:00:08]} 2. c4 {[%emt 0:00:05]} b6 {
[%emt 0:00:16]} 3. g3 {[%emt 0:00:12]} c5 {[%emt 0:00:08]} 4. Bg2 {[%emt 0:00:
05]} Bb7 {[%emt 0:00:05]} 5. O-O {[%emt 0:00:10]} g6 {[%emt 0:00:08]} 6. d4 {
[%emt 0:00:11]} cxd4 {[%emt 0:00:06]} 7. Qxd4 {[%emt 0:00:04]} Bg7 {[%emt 0:00:
21]} 8. Nc3 {[%emt 0:00:22]} d6 {[%emt 0:00:25]} 9. Rd1 {[%emt 0:00:09]} Nbd7 {
[%emt 0:00:10]} 10. Be3 {[%emt 0:00:10]} Rc8 {[%emt 0:00:22]} 11. Rac1 {
[%emt 0:00:37]} a6 {[%emt 0:00:22]} 12. b3 {[%emt 0:00:15]} O-O {[%emt 0:00:13]
} 13. Qh4 {[%emt 0:00:09]} Rc7 {[%emt 0:00:29] The most popular move.} ({
Something might have bothered Karjakin during this game, though, since
slightly later, in two of his games from the Gashimov Memorial, he switched to
} 13... Re8) 14. g4 $5 {[%emt 0:00:18] An ambitious move, aiming to weaken
Black's control over the d5-square and gain kingside space. Its drawback is
that the queen might have problems getting back into the play properly after
g4-g5, ...Nh5.} (14. Bh3 {Meier,G (2668)-Danin,A (2556) Dresden 2012 EXT 2014 
[Gutman,L] (1-0, 38)}) (14. Bh6 {Karpov,A (2688)-Gelfand,B (2704) Cap d'Agde
2002 CBM 092 [Stohl,I] (0-1, 40)}) 14... Rc8 {[%emt 0:02:21] Typical for
modern chess. Black willingly loses two tempi, considering that g3-g4-g5
rather weakens White's position.} (14... h6 {Kramnik,V (2751)-Karpov,A (2710)
Dos Hermanas 1999 CBM 071 [Stohl,I] (1/2-1/2, 33)}) (14... Qa8 15. g5 Ne4 (
15... Nh5 16. Nd5 Bxd5 17. cxd5 Rxc1 18. Rxc1 $5 {[%cal Gf3d4,Gd4c6]} Qxd5 19.
Rc7 $36) 16. Nd5 Bxd5 17. Rxd5 Nec5 {Weber,U (2413)-Eingorn,V (2562) Bad
Wiessee 2010 (1/2-1/2, 44)} 18. Rd2 Qb8 19. Nd4 Rfc8 20. Rdc2 $14) (14... b5
15. g5 Nh5 16. Nd5 Rc8 (16... Bxd5 17. cxd5 Rxc1 18. Rxc1 Qa5 {Hamdouchi,H 
(2535)-Solozhenkin,E (2506) France 2001 (1/2-1/2, 24)} 19. Rc2 $16 {[%cal
Ge3d2,Gf3d4,Gd4c6]}) 17. Nd4 bxc4 18. Nxe7+ Qxe7 19. Bxb7 $16 {Kraai,J (2514)
-Browne,W (2449) San Francisco 2012 (1-0, 38)}) 15. g5 $146 {[%emt 0:00:07]} ({
Karjakin had faced} 15. Bh3 b5 16. cxb5 (16. g5 Nh5 {would transpose to the
analysis below.}) 16... Qa5 17. Bd2 Bxf3 18. exf3 axb5 19. g5 b4 20. gxf6 ({
In a later move White deviated with the more consistent} 20. Na4 Ne5 21. Bg2
Nd5 22. f4 Nd7 $13 {Banusz,T (2593)-Sargissian,G (2676) Warsaw 2013 (1/2-1/2,
53)}) 20... Bxf6 21. Qe4 bxc3 22. Bxd7 Rcd8 23. Bxc3 Bxc3 24. Qxe7 d5 25. Bb5
d4 $44 {Jakovenko,D (2729)-Karjakin,S (2766) Sochi 2012 CBM 148 [Karjakin,S] 
(0-1, 53)}) 15... Nh5 {[%emt 0:00:34]} 16. Ne4 {[%emt 0:00:10]} (16. Bh3 b5 {
Despite the strong pressure in the centre, White has no constructive way of
taking the initiative.} 17. c5 {After this resolute move, Black can sacrifice
the exchange and even the queen. The justification is always that the white
queen has restricted mobility.} (17. Nd2 {[%cal Gh3g4]} Be5 {[%cal Gh5g7]} 18.
f4 Bxc3 $5 19. Rxc3 Qa5 20. Rc2 Rc7 21. f5 Ne5 {It is not entirely clear yet
if White can use his dark-squared bishop for attacking purposes, while
otherwise Black is doing fine.}) 17... Rxc5 $1 18. Bxc5 Nxc5 19. Nd5 (19. Nxb5
{can be met in many ways, but I prefer:} axb5 20. Rxc5 dxc5 21. Rxd8 Rxd8 $44
22. Bf1 Bxf3 23. exf3 Rd4 24. Qh3 e6 $44 {[%csl Gh3]} 25. Bxb5 $2 Rd1+ 26. Bf1
Nf4 27. Qg4 Be5 $19 28. a4 h5 29. gxh6 Kh7 30. a5 f5 31. Qh4 g5 32. Qxg5 Nh3+)
19... e6 20. Rxc5 dxc5 21. Nf6+ Bxf6 22. Rxd8 Bxd8 $44 {[%cal Gh7h6]}) 16...
Rc7 {[%emt 0:24:28][%cal Gd8a8] The rook returns to this square after the
circumstances have changed. It took Karjakin nearly half an hour to decide
upon this move, quite understandably.} (16... Bb2 17. Rc2 Bh8 {Hoping to
transfer the knight to f5, but sadly this is not possible.} 18. Ng3 Ng7 $6 19.
Ne5 $1 Bxg2 20. Ng4 $1 $16 {[%csl Gg8][%cal Gg4h6]}) (16... Qc7 17. Ng3 $14)
17. Ng3 {[%emt 0:00:06]} Nxg3 {[%emt 0:00:36]} 18. hxg3 $14 {[%emt 0:00:04]
White has improved his positon and has some potential threats along the h-file}
Qa8 {[%emt 0:03:02]} 19. Ne1 {[%emt 0:10:28]} ({The straightforward} 19. Kh2
Rfc8 20. Rh1 b5 21. Kg1 Nf8 {does not yield anything. As we will see, Topalov
intended to make use of the h-file in another way.}) (19. Bh3 $5 Bxf3 (19...
Nc5 20. Nd4 $14) 20. exf3 Ne5 21. Bg2 Nxf3+ 22. Bxf3 Qxf3 23. Bxb6 Rc6 24. Be3
$14 {[%cal Gh4h1,Gd1d5,Gd5a5]}) 19... Nc5 {[%emt 0:17:20]} 20. Qh1 {[%emt 0:02:
08] Cornering the queen is typical for openings with reduced space. For
instance, Black sometimes resorts to this kind of regrouping. As a recent
example we can take the third game from the Carlsen-Anand match. But in that
game, too, Black had no space at all and this regrouping was some sort of
desperate way of staying in the game. And yet, Topalov's move is strong, since
despite his space advantage, the queen needed redeploying.} Rfc8 {[%emt 0:08:
13]} 21. Bxb7 $6 {[%emt 0:07:44] It is always a good question what to do when
bishops are in tension this way. In this case, I feel that releasing the
tension only helps Black improve his position slightly. Mainly, it allows him
to defend the b6-pawn.} ({I would prefer carrying out the same plan as in the
game without exchanging bishops. Let Black do it!} 21. Nd3 Nxd3 22. exd3 b5 (
22... Bxg2 23. Qxg2 Qxg2+ 24. Kxg2 Rb7 25. a4 f6 26. gxf6 Bxf6 {White is a
couple of tempi ahead of the game position, which he can exploit with, say,}
27. g4 h5 28. Rh1 hxg4 29. Kg3 $14) 23. Bxb7 Rxb7 24. d4 bxc4 25. Rxc4 Rbb8 (
25... Rxc4 26. bxc4 Rb8 27. Qxa8 Rxa8 28. Rb1 Rc8 29. c5 $14) 26. Qxa8 Rxa8 27.
Rdc1 Rxc4 28. Rxc4 $14) 21... Qxb7 {[%emt 0:00:44]} 22. Qxb7 {[%emt 0:00:58]}
Rxb7 {[%emt 0:00:05]} 23. Nd3 {[%emt 0:12:40][%cal Gd3b4,Gb4d5]} Nxd3 {[%emt 0:
17:12]} (23... a5 24. Nf4 $14) 24. exd3 {[%emt 0:00:38]} f6 $132 {[%emt 0:01:
06] Black gradually solves his problems now.} 25. gxf6 {[%emt 0:01:05]} Bxf6 {
[%emt 0:00:08]} 26. a4 $5 {[%emt 0:02:36][%csl Rb6,Ge3]} h5 {[%emt 0:00:48]} (
26... a5 27. Kg2 h5 28. g4 $5) 27. b4 {[%emt 0:03:23]} Kf7 {[%emt 0:00:49]} 28.
Kg2 {[%emt 0:01:01]} Ke6 {[%emt 0:10:21]} 29. Kf3 {[%emt 0:07:50]} (29. g4 $2
hxg4 30. Kg3 Kf5 $15) 29... Rf8 {[%emt 0:03:56]} 30. Ke2 {[%emt 0:02:16]} Kf5 {
[%emt 0:05:37]} 31. f3 {[%emt 0:00:47]} g5 $1 {[%emt 0:01:51] The game has not
gone White's way. Black is absolutely fine.} 32. Rh1 {[%emt 0:03:18]} Kg6 {
[%emt 0:02:03]} (32... h4 33. Kf2) 33. Rc2 {[%emt 0:03:41]} e5 {[%emt 0:01:23]}
34. b5 {[%emt 0:06:20]} Ra8 {[%emt 0:04:22]} 35. a5 $6 {[%emt 0:03:30] Too
ambitious and looking for trouble actually.} bxa5 {[%emt 0:00:20]} 36. b6 {
[%emt 0:00:06]} Bd8 {[%emt 0:00:11]} 37. Rb1 {[%emt 0:01:57]} Rab8 {[%emt 0:02:
42]} 38. Ra2 {[%emt 0:01:46]} Bxb6 $1 {[%emt 0:05:33]} 39. Rab2 {[%emt 0:01:00]
} Bxe3 {[%emt 0:00:10]} (39... a4 40. Rxb6 $1 (40. c5 $2 dxc5 41. Bxc5 Bxc5 42.
Rxb7 Rxb7 43. Rxb7 a5 $1 {[%cal Gc5b4,Ga4a3]} 44. Rc7 Bb4 45. Rc2 a3 {[%cal
Gg6f5]} 46. g4 h4 47. Ke3 h3 48. Ke4 Be1 {[%cal Ge1g3,Gh3h2]} 49. Ra2 Bc3 $1
$19) (40. Bxb6 a3 $17) 40... Rxb6 41. Rxb6 Rxb6 42. Bxb6 a3 43. Ba5 a2 44. Bc3
$11) 40. Rxb7 {[%emt 0:00:00]} Rxb7 {[%emt 0:00:00]} 41. Rxb7 {[%emt 0:00:17]}
Bc5 $15 {[%emt 0:00:30] Only Black can play here.} 42. Rb8 {[%emt 0:12:41]} a4
{[%emt 0:00:18]} 43. Kd1 {[%emt 0:10:44]} h4 {[%emt 0:05:09]} 44. Rg8+ {
[%emt 0:03:18]} Kf6 {[%emt 0:01:08]} 45. g4 {[%emt 0:02:29]} Bf2 {[%emt 0:18:
35]} (45... Bg1 {[%cal Gh4h2,Ge5e4,Gf6e5,Ge5f4]} 46. Rf8+ $1 (46. Rh8 e4 $1 47.
fxe4 Ke5) 46... Ke7 47. Rg8 Be3 48. Rg6 Bf4 49. Rh6 a3 50. Kc2 $11) (45... e4
46. fxe4 Ke5 47. Rf8 Kd4 48. Kc2 a3 49. Rf3 $11) 46. Rh8 {[%emt 0:02:17]} Kg7 {
[%emt 0:03:22]} 47. Rh5 {[%emt 0:00:19]} Kg6 {[%emt 0:02:59]} 48. Kc2 {[%emt 0:
03:10]} Bd4 {[%emt 0:01:21]} 49. Kb1 {[%emt 0:00:10]} a3 {[%emt 0:00:49]} 50.
Ka2 {[%emt 0:00:13]} Bb2 {[%emt 0:00:31]} 51. Kb3 {[%emt 0:00:24]} Bc1 {
[%emt 0:03:33]} 52. Ka2 {[%emt 0:00:16]} Bb2 {[%emt 0:03:32]} 53. Kb3 {[%emt 0:
00:13]} a5 {[%emt 0:00:08]} 54. Ka2 {[%emt 0:00:04]} a4 {[%emt 0:00:06]} 55.
Kb1 {[%emt 0:00:06]} Bd4 {[%emt 0:00:13]} 56. Ka2 {[%emt 0:00:09]} Bb2 {
[%emt 0:00:06]} 57. Kb1 {[%emt 0:00:04]} Bd4 {[%emt 0:00:05]} 1/2-1/2

[Event "Candidates Tournament"]
[Site "Khanty-Mansiysk"]
[Date "2014.03.29"]
[Round "13"]
[White "Svidler, Peter"]
[Black "Mamedyarov, Shakhriyar"]
[Result "1/2-1/2"]
[ECO "B90"]
[WhiteElo "2758"]
[BlackElo "2757"]
[Annotator "ChessBase Website"]
[PlyCount "83"]
[EventDate "2014.03.13"]
[EventType "tourn"]
[EventRounds "14"]
[EventCountry "RUS"]
[EventCategory "21"]
[SourceTitle "CBM 160"]
[Source "ChessBase"]
[SourceDate "2014.05.15"]
[SourceVersion "1"]
[SourceVersionDate "2014.05.15"]
[SourceQuality "1"]
[TimeControl "40/7200:20/3600:900+30"]
[WhiteClock "0:59:26"]
[BlackClock "0:56:56"]

1. e4 {[%emt 0:00:05]} c5 {[%emt 0:00:04]} 2. Nf3 {[%emt 0:00:08]} d6 {[%emt 0:
00:05]} 3. d4 {[%emt 0:00:05]} cxd4 {[%emt 0:00:03]} 4. Nxd4 {[%emt 0:00:06]}
Nf6 {[%emt 0:00:04]} 5. Nc3 {[%emt 0:00:08]} a6 {[%emt 0:00:04]} 6. Be3 {
[%emt 0:00:07]} Ng4 {[%emt 0:00:12]} 7. Bg5 {[%emt 0:00:06]} h6 {[%emt 0:00:06]
} 8. Bh4 {[%emt 0:00:04]} g5 {[%emt 0:00:07]} 9. Bg3 {[%emt 0:00:05]} Bg7 {
[%emt 0:00:06]} 10. Be2 {[%emt 0:00:33]} h5 {[%emt 0:00:31]} 11. h4 {[%emt 0:
02:26]} Nc6 {[%emt 0:01:07]} 12. Nb3 {[%emt 0:00:23]} gxh4 {[%emt 0:01:29]} 13.
Bxh4 {[%emt 0:00:32]} Be6 {[%emt 0:01:18]} 14. Qd2 {[%emt 0:00:20]} Qb6 {
[%emt 0:00:04]} 15. Nd5 {[%emt 0:00:28]} Bxd5 {[%emt 0:00:05]} 16. exd5 {
[%emt 0:00:05]} Nd4 {[%emt 0:00:02]} 17. Nxd4 {[%emt 0:01:29]} Qxd4 {[%emt 0:
18:23]} 18. Qxd4 {[%emt 0:19:33]} Bxd4 {[%emt 0:00:16]} 19. c3 $146 {[%emt 0:
00:34]} (19. O-O-O Be5 20. Rh3 Kd7 21. Rb3 Rab8 22. a4 Rhg8 23. Kb1 Bf6 24. Rh1
Bxh4 25. Rxh4 Nf6 26. g3 Nxd5 27. Bxh5 Nc7 28. Bxf7 Rg7 29. Bh5 b5 30. axb5
axb5 31. Be2 Rf8 32. f4 Kc8 33. Rh5 Rfg8 34. g4 e6 35. Bf3 Kd7 36. f5 Rg5 37.
fxe6+ Kxe6 38. Re3+ Kd7 39. Be4 R8g7 40. Bf5+ Kc6 41. Rc3+ Kb7 42. Rxg5 Rxg5
43. Rh3 Kb6 44. Rh5 Rg7 45. Rh7 Rg8 46. Kc1 {1-0 (46) Kotronias,V (2530)-King,
D (2500) Gausdal 1993}) 19... Bf6 {[%emt 0:19:26]} 20. O-O-O {[%emt 0:02:09]}
Kd7 {[%emt 0:05:11] A Najdorf quickly turned into a dull double rook endgame
that neither side had realistic winning chances in, depspite the fact that
White's structure was much superior.} 21. Bxg4+ {[%emt 0:06:38]} hxg4 {[%emt 0:
00:10]} 22. Bxf6 {[%emt 0:00:02]} exf6 {[%emt 0:00:05]} 23. Rxh8 {[%emt 0:00:
59]} Rxh8 {[%emt 0:00:09]} 24. Rd4 {[%emt 0:00:03]} Rh5 {[%emt 0:00:06]} 25.
Rxg4 {[%emt 0:07:33]} Rxd5 {[%emt 0:00:10]} 26. Rf4 {[%emt 0:00:07]} Ke6 {
[%emt 0:06:57]} 27. Kc2 {[%emt 0:11:43]} Rg5 {[%emt 0:08:17]} 28. g3 {[%emt 0:
01:04]} Re5 {[%emt 0:01:41]} 29. Kd3 {[%emt 0:02:33]} Rd5+ {[%emt 0:03:05]} 30.
Rd4 {[%emt 0:02:43]} Rf5 {[%emt 0:00:12]} 31. Re4+ {[%emt 0:16:14]} Kd7 {
[%emt 0:00:34]} 32. Ke3 {[%emt 0:00:09]} Re5 {[%emt 0:02:55]} 33. Kd4 {[%emt 0:
01:57]} Rh5 {[%emt 0:08:47]} 34. a4 {[%emt 0:07:14]} b6 {[%emt 0:11:42]} 35. b3
{[%emt 0:03:36]} Rh1 {[%emt 0:02:14]} 36. Kd3 {[%emt 0:08:12]} Rd1+ {[%emt 0:
03:06]} 37. Kc2 {[%emt 0:03:47]} Rf1 {[%emt 0:04:55]} 38. Rf4 {[%emt 0:00:26]}
Ke6 {[%emt 0:00:09]} 39. Kd3 {[%emt 0:01:08]} f5 {[%emt 0:00:54]} 40. Ke2 {
[%emt 0:00:00]} Rc1 {[%emt 0:00:00]} 41. Kd2 {[%emt 0:10:59]} Rf1 {[%emt 0:00:
27]} 42. Ke2 {[%emt 0:01:14]} 1/2-1/2

[Event "Candidates Tournament"]
[Site "Khanty-Mansiysk"]
[Date "2014.03.30"]
[Round "14"]
[White "Anand, Viswanathan"]
[Black "Svidler, Peter"]
[Result "1/2-1/2"]
[ECO "C89"]
[WhiteElo "2770"]
[BlackElo "2758"]
[Annotator "ChessBase Website"]
[PlyCount "67"]
[EventDate "2014.03.13"]
[EventType "tourn"]
[EventRounds "14"]
[EventCountry "RUS"]
[EventCategory "21"]
[SourceTitle "CBM 160"]
[Source "ChessBase"]
[SourceDate "2014.05.15"]
[SourceVersion "1"]
[SourceVersionDate "2014.05.15"]
[SourceQuality "1"]
[TimeControl "40/7200:20/3600:900+30"]
[WhiteClock "1:03:38"]
[BlackClock "1:07:24"]

1. e4 {[%emt 0:00:01]} e5 {[%emt 0:00:14]} 2. Nf3 {[%emt 0:00:08]} Nc6 {
[%emt 0:00:04]} 3. Bb5 {[%emt 0:00:08]} a6 {[%emt 0:00:06]} 4. Ba4 {[%emt 0:00:
07]} Nf6 {[%emt 0:00:05]} 5. O-O {[%emt 0:00:10]} Be7 {[%emt 0:00:10]} 6. Re1 {
[%emt 0:00:09]} b5 {[%emt 0:00:04]} 7. Bb3 {[%emt 0:00:08]} O-O {[%emt 0:00:26]
} 8. c3 {[%emt 0:05:25]} d5 {[%emt 0:02:59]} 9. exd5 {[%emt 0:00:29]} Nxd5 {
[%emt 0:00:03]} 10. Nxe5 {[%emt 0:00:20]} Nxe5 {[%emt 0:00:03]} 11. Rxe5 {
[%emt 0:00:13]} c6 {[%emt 0:00:03]} 12. d3 {[%emt 0:02:19] With the tournament
already in the bag it didn't make any sense for Anand to play for blood or to
show anything new in his preparation. Svidler's Marshall was more than
sufficient to jump into an easily drawn endgame.} Bd6 {[%emt 0:00:16]} 13. Re1
{[%emt 0:00:13]} Bf5 {[%emt 0:06:22]} 14. Qf3 {[%emt 0:04:48]} Qf6 {[%emt 0:03:
17]} 15. Nd2 {[%emt 0:06:17]} Qg6 {[%emt 0:01:57]} 16. Bd1 {[%emt 0:02:20]}
Bxd3 {[%emt 0:02:04]} 17. Ne4 {[%emt 0:02:45]} Bxe4 {[%emt 0:02:49]} 18. Qxe4 {
[%emt 0:00:19]} Qxe4 19. Rxe4 {[%emt 0:00:11]} Rae8 {[%emt 0:01:11]} 20. Rxe8 {
[%emt 0:00:16]} Rxe8 {[%emt 0:00:15]} 21. Kf1 {[%emt 0:00:11]} Bf4 {[%emt 0:03:
06]} 22. Bf3 {[%emt 0:03:57]} Bxc1 {[%emt 0:00:23]} 23. Rxc1 {[%emt 0:00:10]}
Kf8 {[%emt 0:00:24]} 24. a3 $146 {[%emt 0:01:18]} (24. b3 Re6 25. c4 Nb4 26.
cxb5 cxb5 27. a4 bxa4 28. bxa4 Nd3 29. Rb1 Nc5 30. a5 Re5 31. Be2 Ne6 {1/2-1/2
(31) Shirov,A (2696)-Nyback,T (2599) Jyvaskyla 2014}) 24... Rd8 {[%emt 0:16:09]
} 25. c4 {[%emt 0:04:43]} Nf4 {[%emt 0:01:38]} 26. Bxc6 {[%emt 0:04:08]} Nd3 {
[%emt 0:01:01]} 27. Rc2 {[%emt 0:00:49]} bxc4 {[%emt 0:00:43]} 28. Rxc4 {
[%emt 0:03:52]} Nxb2 {[%emt 0:00:30]} 29. Rc2 {[%emt 0:00:16]} Rc8 {[%emt 0:03:
16]} 30. Ke2 {[%emt 0:01:20]} Ke7 {[%emt 0:00:47]} 31. Be4 {[%emt 0:06:51]}
Rxc2+ {[%emt 0:01:31]} 32. Bxc2 {[%emt 0:00:11]} Nc4 {[%emt 0:00:09]} 33. Bd3 {
[%emt 0:01:40]} Nxa3 {[%emt 0:00:31]} 34. Bxa6 {[%emt 0:00:10]} 1/2-1/2

[Event "Candidates Tournament"]
[Site "Khanty-Mansiysk"]
[Date "2014.03.30"]
[Round "14"]
[White "Mamedyarov, Shakhriyar"]
[Black "Kramnik, Vladimir"]
[Result "1/2-1/2"]
[ECO "E36"]
[WhiteElo "2757"]
[BlackElo "2787"]
[Annotator "ChessBase Website"]
[PlyCount "60"]
[EventDate "2014.03.13"]
[EventType "tourn"]
[EventRounds "14"]
[EventCountry "RUS"]
[EventCategory "21"]
[SourceTitle "CBM 160"]
[Source "ChessBase"]
[SourceDate "2014.05.15"]
[SourceVersion "1"]
[SourceVersionDate "2014.05.15"]
[SourceQuality "1"]
[TimeControl "40/7200:20/3600:900+30"]
[WhiteClock "1:16:35"]
[BlackClock "1:04:48"]

1. d4 {[%emt 0:00:03]} Nf6 {[%emt 0:00:13]} 2. c4 {[%emt 0:00:05]} e6 {[%emt 0:
00:03]} 3. Nc3 {[%emt 0:00:04]} Bb4 {[%emt 0:00:52]} 4. Qc2 {[%emt 0:00:40]}
O-O {[%emt 0:01:25]} 5. a3 {[%emt 0:00:15]} Bxc3+ {[%emt 0:00:34]} 6. Qxc3 {
[%emt 0:00:02]} d5 {[%emt 0:00:08]} 7. Nf3 {[%emt 0:00:25]} dxc4 {[%emt 0:00:
17]} 8. Qxc4 {[%emt 0:00:05]} b6 {[%emt 0:00:06]} 9. Bg5 {[%emt 0:00:35]} Ba6 {
[%emt 0:00:56]} 10. Qa4 {[%emt 0:01:56]} Qd7 {[%emt 0:03:33]} 11. Qxd7 {
[%emt 0:18:12]} Nbxd7 {[%emt 0:00:20]} 12. Bxf6 {[%emt 0:01:22]} Nxf6 $11 {
[%emt 0:01:41] Kramnik easily diffused Mamedyarov's Nimzo-Indian and it
quickly fizzled out to a draw.} 13. e3 {[%emt 0:00:22]} Bb7 {[%emt 0:12:00]}
14. Rc1 {[%emt 0:01:06]} Rac8 $146 {[%emt 0:00:50]} (14... c5 15. dxc5 Rac8 16.
Bb5 Rxc5 17. Rxc5 bxc5 18. Ke2 Rb8 19. Rd1 Bd5 20. a4 Ne4 21. Nd2 Nd6 22. e4
Ba8 23. f3 Kf8 24. Nb3 Nxb5 25. axb5 Rxb5 26. Rd8+ Ke7 27. Rxa8 Rxb3 28. Rxa7+
Kf6 29. Ra2 g5 30. Kd2 h5 31. Kc2 Rb5 32. Kd2 Rb3 33. Kc2 Rb5 34. Ra7 g4 35.
Rc7 gxf3 36. gxf3 h4 37. h3 Ra5 38. Kb1 Kg6 39. b3 f6 40. Rc6 e5 41. Kb2 Kg5
42. Kb1 Ra8 43. Rxc5 Kf4 44. Rc6 {Span,P (2296)-Rotstein,A (2500) Netherlands
2008 0-1}) 15. Ne5 {[%emt 0:03:01]} Rfd8 {[%emt 0:11:02]} 16. f3 {[%emt 0:06:
06]} c5 {[%emt 0:02:53]} 17. dxc5 {[%emt 0:00:21]} Nd7 {[%emt 0:06:43]} 18.
Nxd7 {[%emt 0:00:48]} Rxd7 {[%emt 0:00:18]} 19. e4 {[%emt 0:03:30]} Kf8 {
[%emt 0:06:50]} 20. b4 {[%emt 0:03:22]} bxc5 {[%emt 0:01:52]} 21. Bb5 {[%emt 0:
00:12]} Rdc7 {[%emt 0:00:43]} 22. Kd2 {[%emt 0:00:27]} cxb4 {[%emt 0:00:47]}
23. axb4 {[%emt 0:00:05]} Rxc1 {[%emt 0:00:07]} 24. Rxc1 {[%emt 0:00:02]} Rxc1
{[%emt 0:00:08]} 25. Kxc1 {[%emt 0:00:01]} e5 {[%emt 0:00:11]} 26. Kd2 {
[%emt 0:00:04]} Ke7 {[%emt 0:00:06]} 27. Kd3 {[%emt 0:00:03]} Kd6 {[%emt 0:00:
11]} 28. Bc4 {[%emt 0:00:02]} f6 {[%emt 0:00:07]} 29. g4 {[%emt 0:00:05]} g5 {
[%emt 0:00:08]} 30. Kc3 {[%emt 0:00:04]} Bc8 {[%emt 0:00:08]} 1/2-1/2